bitfinex/quotes_SOLUSD_20240714
["timestamp","ask_amount","ask_price","bid_price","bid_amount"]
[1720992523279,15.3241,148.01,147.93,1.35164165]
[1720992523481,15.3241,148.01,147.9,10.0]
[1720992523798,15.3241,148.01,147.92,10.0]
[1720992524399,10.76,147.97,147.92,20.76]
[1720992525783,15.3241,148.01,147.94,10.0]
[1720992526281,10.76,147.97,147.93,10.76]
[1720992526598,1.68966883,148.0,147.93,10.76]
[1720992526771,10.76,147.98,147.93,10.76]
[1720992526980,1.68966883,148.0,147.93,10.76]
[1720992527181,10.76,147.98,147.94,10.0]
[1720992527389,10.76,147.98,147.93,10.76]
[1720992527597,10.76,147.97,147.93,10.76]
[1720992527801,10.76,147.97,147.92,10.0]
[1720992528187,10.76,147.97,147.92,20.76]
[1720992528506,10.76,147.97,147.92,10.76]
[1720992528696,10.76,147.97,147.94,10.0]
[1720992529800,1.68967377,148.0,147.94,10.0]
[1720992530109,10.76,147.97,147.92,20.76]
[1720992530306,10.76,147.97,147.94,10.0]
[1720992530894,8.0945744,147.96,147.9,10.0]
[1720992531111,8.0945744,147.96,147.92,10.76]
[1720992531417,6.4049,147.96,147.92,9.26]
[1720992531709,8.09471379,147.96,147.92,9.26]
[1720992532006,1.6898168,147.95,147.89,10.0]
[1720992532198,15.8557,147.94,147.9,10.76]
[1720992532990,15.8557,147.94,147.88,20.0]
[1720992533195,15.8557,147.94,147.87,15.8557]
[1720992533196,1.6899648,147.93,147.91,10.76]
[1720992533706,1.69019287,147.92,147.9,10.76]
[1720992533901,1.69032884,147.93,147.9,10.76]
[1720992534079,1.69032962,147.92,147.9,10.76]
[1720992534415,1.69032962,147.92,147.91,10.76]
[1720992534603,1.69032962,147.92,147.86,10.0]
[1720992534907,16.6231,147.9,147.83,13.46783527]
[1720992535083,1.69059947,147.89,147.88,10.76]
[1720992535808,1.69059947,147.89,147.83,13.46783527]
[1720992535986,1.69059947,147.89,147.83,3.46783527]
[1720992536307,10.76,147.87,147.82,7.06351906]
[1720992536609,16.69774756,147.86,147.82,7.06351906]
[1720992536781,1.69134504,147.85,147.82,17.82351906]
[1720992536984,1.69134504,147.85,147.82,7.06351906]
[1720992537184,1.69134504,147.85,147.76,20.76]
[1720992537381,12.45134504,147.85,147.8,10.76]
[1720992537589,6.5973,147.84,147.8,10.76]
[1720992537808,1.69158172,147.83,147.76,10.76]
[1720992538005,1.69178197,147.82,147.79,10.76]
[1720992538211,1.69178197,147.82,147.75,7.06249315]
[1720992539010,6.5973,147.8,147.69,31.57]
[1720992539189,1.69217112,147.79,147.69,31.57]
[1720992539510,1.69217112,147.79,147.7,1.35382291]
[1720992539699,1.69217112,147.79,147.7,10.0]
[1720992540022,1.69217112,147.79,147.69,10.0]
[1720992540310,1.69217112,147.79,147.69,20.0]
[1720992540604,1.69217112,147.79,147.69,10.0]
[1720992540990,1.69217112,147.79,147.69,20.0]
[1720992541801,1.69217112,147.79,147.71,10.0]
[1720992542713,1.69217112,147.79,147.73,10.0]
[1720992543094,1.69217112,147.79,147.75,10.0]
[1720992543616,1.69217112,147.79,147.73,10.0]
[1720992545524,1.69217112,147.79,147.71,31.57]
[1720992545701,1.69217112,147.79,147.71,10.0]
[1720992545899,1.69217112,147.79,147.73,10.0]
[1720992546414,1.69217112,147.79,147.71,20.0]
[1720992548208,1.69217112,147.79,147.69,41.57]
[1720992548523,21.69217112,147.79,147.69,41.57]
[1720992548693,21.69217112,147.79,147.71,10.0]
[1720992548898,21.69217112,147.79,147.69,10.0]
[1720992550125,21.69217112,147.79,147.69,20.0]
[1720992551825,21.69217112,147.79,147.71,10.0]
[1720992552011,21.69217112,147.79,147.71,20.0]
[1720992552510,21.69217112,147.79,147.71,10.0]
[1720992552709,21.69217112,147.79,147.73,10.0]
[1720992552911,1.69217112,147.79,147.73,10.0]
[1720992553141,1.69217112,147.79,147.71,20.0]
[1720992554436,1.69217112,147.79,147.71,10.0]
[1720992555018,1.69217112,147.79,147.71,20.0]
[1720992555215,1.69217112,147.79,147.71,10.0]
[1720992556440,1.69217112,147.79,147.69,20.0]
[1720992556729,21.69217112,147.79,147.71,10.0]
[1720992556930,16.3815,147.78,147.69,10.0]
[1720992557146,21.69269777,147.77,147.69,10.0]
[1720992557328,7.98730326,147.76,147.69,10.0]
[1720992558012,7.98730326,147.76,147.68,10.0]
[1720992558211,7.98730326,147.76,147.67,7.06234763]
[1720992558413,36.3815,147.75,147.66,10.0]
[1720992558723,1.69306557,147.74,147.66,10.0]
[1720992558912,1.69306899,147.73,147.66,10.0]
[1720992560236,1.69307085,147.74,147.69,21.57]
[1720992560416,1.69236846,147.74,147.71,10.0]
[1720992560624,16.3815,147.75,147.73,10.0]
[1720992560830,1.69225718,147.74,147.71,10.0]
[1720992562336,1.69225718,147.74,147.7,10.0]
[1720992562716,1.69225718,147.74,147.71,10.0]
[1720992563339,1.69225718,147.74,147.7,10.0]
[1720992563524,1.69225718,147.74,147.69,10.0]
[1720992563525,1.69225718,147.74,147.68,10.0]
[1720992563723,1.69225718,147.74,147.68,20.0]
[1720992564136,1.69225718,147.74,147.68,10.0]
[1720992564514,21.69225718,147.74,147.66,20.0]
[1720992564925,21.69225718,147.74,147.66,10.0]
[1720992565739,6.3561,147.73,147.65,0.8657517]
[1720992565945,21.69314516,147.72,147.65,0.8657517]
[1720992566137,21.69314516,147.72,147.66,10.0]
[1720992567453,21.69314516,147.72,147.65,0.8657517]
[1720992568953,22.4516,147.71,147.65,0.8657517]
[1720992569156,21.69339812,147.7,147.65,0.8657517]
[1720992572051,22.4516,147.69,147.6,31.57]
[1720992572261,21.69376594,147.68,147.6,31.57]
[1720992572434,1.6937659,147.67,147.6,31.57]
[1720992573541,1.6937659,147.67,147.6,10.0]
[1720992573961,1.6937659,147.67,147.58,20.0]
[1720992574533,1.6937659,147.67,147.58,10.0]
[1720992575944,22.754,147.66,147.58,10.0]
[1720992576147,16.3462,147.64,147.55,7.07112996]
[1720992576332,21.69447342,147.63,147.52,10.0]
[1720992576667,6.4078,147.62,147.52,10.0]
[1720992576972,21.69451837,147.61,147.52,10.0]
[1720992577142,1.69461798,147.6,147.52,10.0]
[1720992577340,6.4078,147.58,147.52,10.0]
[1720992577649,6.4078,147.58,147.51,0.8657517]
[1720992577650,16.3462,147.56,147.51,0.8657517]
[1720992577867,1.6948985,147.55,147.51,0.8657517]
[1720992578044,1.69485913,147.54,147.51,0.8657517]
[1720992578365,1.69485913,147.54,147.51,0.3657517]
[1720992579136,6.4078,147.53,147.51,0.3657517]
[1720992579352,6.4078,147.53,147.45,7.06786799]
[1720992579353,18.04167318,147.52,147.42,10.0]
[1720992579555,1.69569345,147.51,147.44,10.0]
[1720992580073,1.69569345,147.51,147.42,10.0]
[1720992582272,1.69569345,147.51,147.41,10.0]
[1720992582273,6.4078,147.5,147.41,10.0]
[1720992582571,21.69600617,147.49,147.39,10.0]
[1720992582754,1.69602896,147.48,147.39,10.0]
[1720992582955,1.69602896,147.48,147.4,10.0]
[1720992583467,1.69602896,147.48,147.39,10.0]
[1720992583677,1.69602896,147.48,147.39,20.0]
[1720992583851,1.69602896,147.48,147.39,10.0]
[1720992584669,6.4078,147.44,147.37,7.06101275]
[1720992584873,6.4078,147.44,147.33,10.0]
[1720992584874,1.69665598,147.43,147.33,10.0]
[1720992585046,1.69691649,147.42,147.33,20.0]
[1720992585255,1.69691649,147.42,147.33,10.0]
[1720992585775,1.69691649,147.42,147.33,20.0]
[1720992586281,1.69691649,147.42,147.33,10.0]
[1720992586648,1.69691649,147.42,147.33,20.0]
[1720992586852,1.69691649,147.42,147.33,10.0]
[1720992587274,1.69691649,147.42,147.3,17.07056831]
[1720992587275,6.4078,147.4,147.3,17.07056831]
[1720992587472,6.4078,147.4,147.3,10.0]
[1720992587473,21.6970876,147.39,147.3,10.0]
[1720992588371,21.6970876,147.39,147.27,10.0]
[1720992588372,21.6970876,147.39,147.27,20.0]
[1720992588965,6.4078,147.37,147.26,7.07393869]
[1720992589166,21.69762903,147.36,147.25,10.0]
[1720992589697,21.69762903,147.36,147.24,10.0]
[1720992590180,45.0,147.35,147.24,10.0]
[1720992590391,21.69792415,147.34,147.25,10.0]
[1720992590583,1.69792415,147.34,147.25,10.0]
[1720992590888,1.69792415,147.34,147.24,10.0]
[1720992591092,21.69792415,147.34,147.24,10.0]
[1720992591781,22.754,147.33,147.23,10.0]
[1720992591959,21.69801045,147.32,147.22,17.94194591]
[1720992592160,21.69801045,147.32,147.23,10.0]
[1720992593579,1.69801045,147.32,147.23,10.0]
[1720992593770,21.69801045,147.32,147.23,10.0]
[1720992594065,1.69801045,147.32,147.26,20.0]
[1720992594388,1.69801045,147.32,147.24,65.0]
[1720992594597,1.69801045,147.32,147.3,10.0]
[1720992594763,1.69758092,147.38,147.3,10.0]
[1720992595082,1.69758092,147.38,147.3,20.0]
[1720992595487,1.69758092,147.38,147.33,10.0]
[1720992595789,6.3667,147.42,147.33,20.0]
[1720992596000,1.69685931,147.41,147.33,10.0]
[1720992596784,1.69685931,147.41,147.33,20.0]
[1720992597292,1.69685931,147.41,147.35,10.0]
[1720992598196,1.69685931,147.41,147.33,20.0]
[1720992598386,1.69685931,147.41,147.34,45.0]
[1720992599066,1.69685931,147.41,147.35,10.0]
[1720992599369,1.69685931,147.41,147.34,10.0]
[1720992599793,1.69685931,147.41,147.36,10.0]
[1720992600173,1.69685931,147.41,147.37,45.0]
[1720992600689,1.69685931,147.41,147.38,10.0]
[1720992600887,1.69608157,147.46,147.4,10.0]
[1720992601069,1.69587027,147.45,147.42,10.0]
[1720992601469,7.86855478,147.47,147.43,10.0]
[1720992601666,6.1728,147.51,147.45,10.0]
[1720992601987,6.1728,147.51,147.46,10.0]
[1720992601988,1.69540833,147.51,147.46,10.0]
[1720992602186,16.931,147.66,147.51,10.0]
[1720992602187,1.69501058,147.59,147.51,10.0]
[1720992602393,1.69460423,147.65,147.54,10.0]
[1720992602599,1.69438549,147.64,147.54,10.0]
[1720992602988,1.69438549,147.64,147.55,45.0]
[1720992603394,1.69438549,147.64,147.56,10.0]
[1720992603594,1.69407613,147.65,147.56,10.0]
[1720992603804,1.69404856,147.64,147.57,45.0]
[1720992604309,1.69404856,147.64,147.58,20.0]
[1720992604512,1.69404856,147.64,147.59,45.0]
[1720992604812,1.6938147,147.65,147.59,45.0]
[1720992605012,22.1773,147.66,147.6,10.0]
[1720992605013,1.69373946,147.64,147.6,10.0]
[1720992605209,1.6935836,147.65,147.61,45.0]
[1720992605415,22.1773,147.66,147.61,45.0]
[1720992605416,1.69354056,147.64,147.61,45.0]
[1720992605793,1.69351277,147.65,147.62,10.0]
[1720992606116,6.1911,147.66,147.58,20.0]
[1720992606117,1.69343494,147.64,147.58,20.0]
[1720992606317,1.69343494,147.64,147.58,10.0]
[1720992607094,1.69379974,147.65,147.58,20.0]
[1720992607302,1.69380026,147.64,147.58,20.0]
[1720992607508,1.69380026,147.64,147.59,45.0]
[1720992607702,1.69380026,147.64,147.6,10.0]
[1720992608015,1.69380026,147.64,147.59,45.0]
[1720992608513,1.69380026,147.64,147.62,10.0]
[1720992608714,1.69350042,147.65,147.6,20.0]
[1720992608919,1.69350002,147.64,147.61,45.0]
[1720992609096,1.69350018,147.65,147.61,45.0]
[1720992609295,1.69349967,147.64,147.61,45.0]
[1720992609519,1.69349656,147.65,147.61,45.0]
[1720992609721,1.69349656,147.65,147.6,20.0]
[1720992609722,1.69349638,147.64,147.6,20.0]
[1720992610227,1.69349638,147.64,147.6,10.0]
[1720992610406,1.69349638,147.64,147.6,20.0]
[1720992610802,1.69370478,147.65,147.6,20.0]
[1720992611001,1.69370422,147.64,147.6,20.0]
[1720992611229,1.69370422,147.64,147.6,10.0]
[1720992611430,1.69370422,147.64,147.6,20.0]
[1720992611924,1.69370316,147.65,147.6,20.0]
[1720992612130,1.69370316,147.64,147.6,20.0]
[1720992612504,1.69370316,147.64,147.6,10.0]
[1720992612716,1.69370316,147.64,147.58,20.0]
[1720992613025,1.69370337,147.65,147.6,10.0]
[1720992613243,1.69370193,147.65,147.6,10.0]
[1720992613411,1.69370193,147.65,147.61,45.0]
[1720992613808,8.20605739,147.71,147.64,10.0]
[1720992614021,1.69323976,147.7,147.65,45.0]
[1720992614328,1.69323976,147.7,147.64,10.0]
[1720992614506,1.69323976,147.7,147.64,20.0]
[1720992615427,1.69323976,147.7,147.66,10.0]
[1720992615602,1.69323976,147.7,147.64,20.0]
[1720992615802,1.69323976,147.7,147.65,45.0]
[1720992616003,1.69323976,147.7,147.66,10.0]
[1720992616936,1.69323976,147.7,147.67,45.0]
[1720992618416,8.20549138,147.71,147.68,10.0]
[1720992618622,8.20549138,147.71,147.69,45.0]
[1720992619545,1.69269412,147.7,147.66,20.0]
[1720992619716,1.69269412,147.7,147.64,10.0]
[1720992620525,1.69269412,147.7,147.63,10.0]
[1720992620924,1.69269412,147.7,147.64,10.0]
[1720992621435,1.69269412,147.7,147.66,10.0]
[1720992622547,1.69269412,147.7,147.64,10.0]
[1720992622732,1.69269412,147.7,147.63,10.0]
[1720992622932,1.69269412,147.7,147.67,10.0]
[1720992623444,1.69269412,147.7,147.62,20.0]
[1720992623651,1.69269412,147.7,147.63,45.0]
[1720992623829,1.69269412,147.7,147.62,20.0]
[1720992624031,21.69269412,147.7,147.62,20.0]
[1720992625036,21.69269412,147.7,147.64,10.0]
[1720992625735,21.69269412,147.7,147.63,45.0]
[1720992626952,24.0096631,147.7,147.59,10.0]
[1720992627155,24.0096631,147.7,147.6,10.0]
[1720992627327,24.0096631,147.7,147.61,10.0]
[1720992627526,24.0096631,147.7,147.6,10.0]
[1720992627759,24.0096631,147.7,147.59,10.0]
[1720992628057,2.30663356,147.69,147.58,268.0]
[1720992628232,1.69376179,147.68,147.58,10.0]
[1720992628432,1.69377557,147.67,147.58,10.0]
[1720992629528,21.69377557,147.67,147.6,10.0]
[1720992629746,1.69377557,147.67,147.6,10.0]
[1720992629936,1.69377557,147.67,147.58,10.0]
[1720992630254,1.69377557,147.67,147.59,10.0]
[1720992630749,1.69377557,147.67,147.57,10.0]
[1720992630750,22.1899,147.66,147.57,10.0]
[1720992631048,22.1899,147.66,147.55,10.0]
[1720992631049,21.69398735,147.65,147.55,20.0]
[1720992631258,1.69417626,147.64,147.55,20.0]
[1720992631441,1.69417626,147.64,147.55,10.0]
[1720992631952,46.69417626,147.64,147.51,20.0]
[1720992632158,26.4427,147.63,147.5,7.05657486]
[1720992632364,46.69469688,147.62,147.5,7.05657486]
[1720992632537,20.0,147.61,147.5,7.05657486]
[1720992632738,1.69472821,147.6,147.5,7.05657486]
[1720992633040,15.2854,147.59,147.5,7.05657486]
[1720992633245,6.4427,147.57,147.5,7.05657486]
[1720992633453,21.69494895,147.56,147.5,7.05657486]
[1720992634058,21.69494895,147.56,147.49,10.0]
[1720992634242,21.69494895,147.56,147.46,10.0]
[1720992635133,21.69494895,147.56,147.47,10.0]
[1720992635433,1.69494895,147.56,147.5,10.0]
[1720992635637,1.69494895,147.56,147.51,10.0]
[1720992635958,1.69494895,147.56,147.52,10.0]
[1720992636259,1.69494895,147.56,147.51,10.0]
[1720992638037,1.69494895,147.56,147.52,55.0]
[1720992639358,1.69494895,147.56,147.52,10.0]
[1720992642572,8.13726861,147.57,147.53,45.0]
[1720992643075,8.13726861,147.57,147.52,10.0]
[1720992643455,8.13726861,147.57,147.51,10.0]
[1720992644474,8.13726861,147.57,147.49,10.0]
[1720992644641,8.13726861,147.57,147.5,10.0]
[1720992645263,8.13726861,147.57,147.49,10.0]
[1720992645461,8.13726861,147.57,147.5,10.0]
[1720992645639,8.13726861,147.57,147.51,10.0]
[1720992646044,8.13726861,147.57,147.49,10.0]
[1720992646256,8.13726861,147.57,147.5,45.0]
[1720992646462,8.13726861,147.57,147.51,10.0]
[1720992649572,1.69460731,147.56,147.53,20.0]
[1720992650371,6.4427,147.57,147.53,20.0]
[1720992650569,8.13707159,147.57,147.53,20.0]
[1720992650885,8.13707159,147.57,147.5,10.0]
[1720992652060,8.13707159,147.57,147.49,10.0]
[1720992652372,8.13707159,147.57,147.5,10.0]
[1720992654676,8.13707159,147.57,147.49,10.0]
[1720992654873,8.13707159,147.57,147.5,45.0]
[1720992655076,8.13707159,147.57,147.5,10.0]
[1720992655569,8.13707159,147.57,147.51,45.0]
[1720992657765,8.13707159,147.57,147.5,10.0]
[1720992657963,8.13707159,147.57,147.49,10.0]
[1720992658179,8.13707159,147.57,147.48,30.0]
[1720992658379,8.13707159,147.57,147.48,10.0]
[1720992658565,20.0,147.56,147.47,7.06088441]
[1720992658779,1.69515481,147.55,147.47,7.06088441]
[1720992658957,1.69524559,147.54,147.47,7.06088441]
[1720992659155,1.69524559,147.54,147.47,17.06088441]
[1720992659356,1.69524559,147.54,147.47,7.06088441]
[1720992660654,21.69524559,147.54,147.47,7.06088441]
[1720992661070,1.69524559,147.54,147.47,7.06088441]
[1720992661967,21.69524559,147.54,147.47,7.06088441]
[1720992662671,21.69524559,147.54,147.45,10.0]
[1720992662885,21.69524559,147.54,147.46,7.0626821]
[1720992663306,1.69524559,147.54,147.46,7.0626821]
[1720992663803,21.4769,147.53,147.46,7.0626821]
[1720992663973,21.4769,147.53,147.43,20.0]
[1720992663974,1.69546548,147.52,147.43,20.0]
[1720992664291,1.69555884,147.51,147.44,65.0]
[1720992664701,1.69555884,147.51,147.44,20.0]
[1720992665505,1.69555884,147.51,147.43,10.0]
[1720992669509,1.69555884,147.51,147.47,10.0]
[1720992669682,21.4769,147.53,147.47,10.0]
[1720992669882,1.69522162,147.52,147.47,10.0]
[1720992670284,6.3343,147.53,147.49,20.0]
[1720992670509,22.4493,147.57,147.51,10.0]
[1720992670717,1.69462117,147.56,147.51,20.0]
[1720992672003,6.4458,147.57,147.54,10.0]
[1720992672207,6.4458,147.57,147.55,45.0]
[1720992674705,1.69426532,147.6,147.57,20.0]
[1720992674902,1.69426532,147.6,147.57,10.0]
[1720992675483,1.69396797,147.6,147.57,20.0]
[1720992675812,1.69396797,147.6,147.57,10.0]
[1720992676000,18.35746742,147.61,147.57,10.0]
[1720992676209,16.6635,147.61,147.57,10.0]
[1720992676611,16.6635,147.61,147.57,20.0]
[1720992677002,1.69404145,147.62,147.58,45.0]
[1720992677213,6.2861,147.63,147.59,10.0]
[1720992678208,15.0,147.71,147.59,10.0]
[1720992678209,6.5408,147.68,147.61,10.0]
[1720992678421,1.69339386,147.67,147.61,20.0]
[1720992678705,1.69339386,147.67,147.62,45.0]
[1720992682536,1.69339386,147.67,147.63,10.0]
[1720992682907,1.69339386,147.67,147.63,20.0]
[1720992683116,1.69339386,147.67,147.64,45.0]
[1720992683436,1.69339386,147.67,147.63,10.0]
[1720992684524,1.69339386,147.67,147.64,45.0]
[1720992687315,8.23397463,147.68,147.64,45.0]
[1720992687512,8.70572633,147.73,147.65,10.0]
[1720992687823,8.70572633,147.73,147.64,45.0]
[1720992687824,8.70572633,147.73,147.67,10.0]
[1720992688546,8.70572633,147.73,147.66,10.0]
[1720992691039,8.70572633,147.73,147.67,45.0]
[1720992692840,8.70572633,147.73,147.67,55.0]
[1720992694047,8.70572633,147.73,147.67,45.0]
[1720992694223,8.70572633,147.73,147.66,10.0]
[1720992694643,8.70572633,147.73,147.67,10.0]
[1720992694845,8.70572633,147.73,147.66,10.0]
[1720992695547,8.70572633,147.73,147.63,41.65]
[1720992695716,20.0,147.72,147.63,20.0]
[1720992695923,1.69316372,147.71,147.65,10.0]
[1720992696225,1.69313973,147.7,147.65,10.0]
[1720992696420,1.69313973,147.7,147.63,20.0]
[1720992697024,1.69315201,147.71,147.63,20.0]
[1720992697241,1.69317984,147.7,147.63,20.0]
[1720992697825,1.69317984,147.7,147.65,10.0]
[1720992698144,1.69309928,147.71,147.65,10.0]
[1720992698337,1.69309855,147.7,147.65,10.0]
[1720992699433,1.69310092,147.69,147.65,10.0]
[1720992699632,1.69309723,147.71,147.65,10.0]
[1720992699843,1.69309886,147.7,147.65,10.0]
[1720992700757,1.69309946,147.71,147.65,10.0]
[1720992700960,1.69309833,147.7,147.65,10.0]
[1720992701246,1.69309833,147.7,147.63,10.0]
[1720992701247,1.69309833,147.7,147.63,20.0]
[1720992701455,1.69309833,147.7,147.63,10.0]
[1720992704645,1.69309833,147.7,147.61,10.0]
[1720992704842,21.69309833,147.7,147.61,10.0]
[1720992705161,21.69309833,147.7,147.61,20.0]
[1720992705454,21.69309833,147.7,147.61,10.0]
[1720992705752,289.8228,147.83,147.61,10.0]
[1720992705753,2.78965287,147.76,147.75,10.0]
[1720992705928,30.0,147.76,147.75,10.0]
[1720992706126,1.87581697,147.87,147.8,20.0]
[1720992706351,1.87581697,147.87,147.81,45.0]
[1720992707055,1.01006527,147.86,147.81,45.0]
[1720992708368,0.8657517,147.87,147.81,45.0]
[1720992708547,1.01006527,147.86,147.81,45.0]
[1720992709251,0.8657517,147.87,147.83,20.0]
[1720992709452,0.8657517,147.87,147.84,45.0]
[1720992709657,0.8657517,147.87,147.85,20.0]
[1720992709837,0.8657517,147.87,147.86,45.0]
[1720992710764,0.8657517,147.87,147.85,45.0]
[1720992710937,0.8657517,147.87,147.84,45.0]
[1720992711139,0.8657517,147.87,147.84,55.0]
[1720992711361,0.8657517,147.87,147.84,45.0]
[1720992711663,0.8657517,147.87,147.81,10.0]
[1720992711837,1.01006527,147.86,147.81,10.0]
[1720992712038,0.8657517,147.87,147.81,10.0]
[1720992712340,1.01006527,147.86,147.81,10.0]
[1720992712665,1.01006527,147.86,147.82,10.0]
[1720992712843,1.01006527,147.86,147.83,45.0]
[1720992713248,0.8657517,147.87,147.82,45.0]
[1720992714367,1.01006527,147.86,147.82,45.0]
[1720992715372,0.8657517,147.87,147.82,55.0]
[1720992716551,0.8657517,147.87,147.84,10.0]
[1720992716757,0.8657517,147.87,147.85,45.0]
[1720992717248,0.8657517,147.87,147.82,10.0]
[1720992717476,1.01006527,147.86,147.83,45.0]
[1720992718065,1.01006527,147.85,147.8,20.0]
[1720992718585,1.01006527,147.85,147.8,10.0]
[1720992718878,1.01006527,147.85,147.8,20.0]
[1720992719951,1.01006527,147.84,147.81,45.0]
[1720992720162,0.8657517,147.87,147.81,45.0]
[1720992720365,1.01006527,147.86,147.81,45.0]
[1720992720951,1.01006527,147.86,147.78,41.65]
[1720992721260,1.01006527,147.86,147.79,45.0]
[1720992721462,1.01006527,147.86,147.78,20.0]
[1720992722049,1.01006527,147.86,147.79,1.35316814]
[1720992722261,0.8657517,147.87,147.73,51.44862322]
[1720992722262,16.5466,147.84,147.75,10.0]
[1720992722469,16.5466,147.84,147.75,20.0]
[1720992722470,1.01006527,147.83,147.75,20.0]
[1720992722783,1.01006527,147.82,147.75,20.0]
[1720992723369,1.01006527,147.82,147.75,10.0]
[1720992723687,1.01006527,147.82,147.75,20.0]
[1720992724185,1.01006527,147.82,147.75,10.0]
[1720992725084,1.01006527,147.82,147.72,7.05141586]
[1720992725385,1.01006527,147.82,147.72,17.05141586]
[1720992725958,1.01006527,147.82,147.72,7.05141586]
[1720992726574,1.01006527,147.82,147.69,41.65]
[1720992726765,1.01006527,147.82,147.69,48.69957098]
[1720992726976,22.66006527,147.82,147.69,27.04957098]
[1720992727174,20.0,147.81,147.69,27.04957098]
[1720992727377,1.01006527,147.8,147.69,27.04957098]
[1720992727677,1.01006527,147.79,147.69,27.04957098]
[1720992728077,1.01006527,147.79,147.7,45.0]
[1720992728484,6.193,147.78,147.69,7.04957098]
[1720992728676,1.01006527,147.77,147.69,7.04957098]
[1720992728996,1.01006527,147.76,147.69,7.04957098]
[1720992730191,1.01006527,147.76,147.62,36.9382]
[1720992730192,21.65,147.73,147.6,10.0]
[1720992730496,16.40006527,147.75,147.58,10.0]
[1720992730497,36.65,147.7,147.58,10.0]
[1720992730685,1.01006527,147.69,147.58,10.0]
[1720992730991,21.01006527,147.69,147.58,10.0]
[1720992731401,15.6009,147.68,147.58,10.0]
[1720992731611,1.01006527,147.67,147.57,10.0]
[1720992732202,1.01006527,147.67,147.56,10.0]
[1720992732401,6.1768,147.66,147.56,10.0]
[1720992732698,1.01006527,147.65,147.56,10.0]
[1720992732874,1.01006527,147.64,147.56,10.0]
[1720992734016,21.65,147.62,147.52,7.05134702]
[1720992734304,1.01006527,147.61,147.49,10.0]
[1720992734478,1.01006527,147.6,147.51,10.0]
[1720992735179,22.78776527,147.59,147.45,10.0]
[1720992735380,21.65,147.57,147.46,10.0]
[1720992735692,21.01006527,147.56,147.48,10.0]
[1720992735868,21.01006527,147.56,147.47,10.0]
[1720992736073,21.01006527,147.56,147.46,10.0]
[1720992736074,21.01006527,147.56,147.46,20.0]
[1720992736382,1.01006527,147.56,147.46,10.0]
[1720992737098,1.01006527,147.56,147.48,20.0]
[1720992737288,1.01006527,147.56,147.44,34.37]
[1720992737486,1.01006527,147.56,147.43,20.0]
[1720992737878,1.01006527,147.56,147.45,10.0]
[1720992738174,1.01006527,147.56,147.43,20.0]
[1720992738385,21.01006527,147.56,147.43,10.0]
[1720992739373,21.01006527,147.56,147.43,20.0]
[1720992739589,21.01006527,147.56,147.43,10.0]
[1720992739972,20.0,147.55,147.43,10.0]
[1720992740271,1.01006527,147.54,147.43,10.0]
[1720992740671,1.01006527,147.54,147.43,20.0]
[1720992740866,22.3918,147.53,147.43,10.0]
[1720992741202,23.32703425,147.52,147.41,10.0]
[1720992741399,23.32703425,147.52,147.41,20.0]
[1720992741400,3.31669883,147.51,147.41,20.0]
[1720992741570,2.30663356,147.5,147.41,10.0]
[1720992741769,1.01006527,147.49,147.41,10.0]
[1720992741995,1.01006527,147.48,147.41,10.0]
[1720992743605,8.67913356,147.47,147.37,20.0]
[1720992743901,21.01006527,147.46,147.37,20.0]
[1720992744100,1.01006527,147.45,147.37,10.0]
[1720992744601,1.01006527,147.45,147.36,10.8657517]
[1720992744973,1.01006527,147.45,147.37,10.0]